Cogmind - Beta 11.1 @@@ ROGUE MODE // 2022.05.02 @ 14:25:03 Player: Olga Result: Self-destructed Performance ------------- Evolutions (2) 1000 Regions Visited (3) 600 Robots Destroyed (5) 25 Value Destroyed (41) 41 Prototype IDs (0) 0 Alien Tech Used (0) 0 Bonus (200) 200 TOTAL SCORE: 1866 Bonus ------- Pacifist 200 Cogmind --------- Core Integrity 465/550 Matter 123/300 Energy 13/100 System Corruption 0% Temperature Cool (1) Movement Hovering (60) Location -8/Materials Parts ------- > --- POWER (1) -------- (None) > --- PROPULSION (3) --- Airjet > --- UTILITY (5) ------ Structural Scanner Advanced Visual Processing Unit Seismic Detector Improved Utility Shielding > --- WEAPON (2) ------- Scythe > --- INVENTORY (5) ---- Advanced Visual Processing Unit Sensor Array Propulsion Shielding Light Assault Rifle Peak State ------------ > --- POWER ------------ Light Deuterium Engine > --- PROPULSION ------- Airjet Airjet Airjet > --- UTILITY ---------- Structural Scanner Advanced Visual Processing Unit Seismic Detector Improved Utility Shielding > --- WEAPON ----------- Scythe > --- INVENTORY -------- Advanced Visual Processing Unit Sensor Array Propulsion Shielding Light Assault Rifle [Rating: 23] Favorites ----------- Power Light Ion Engine Engine Light Ion Engine Propulsion Flight Unit Hover Unit Airjet Flight Unit Flight Unit Utility Seismic Detector Device Seismic Detector Processor Advanced Visual Processing Unit Protection Improved Utility Shielding Weapon Light Assault Rifle Energy Gun Medium Laser Ballistic Gun Light Assault Rifle Launcher Grenade Launcher Impact Weapon Heavy Mace Slashing Weapon Scythe Build | -11 -10 -9 -8 ------- Run | Scr Mat Mat Mat Slots Evolved 4 | . . 2 2 Power . | . . . . Propulsion 1 | . . . 1 Utility 3 | . . 2 1 Weapon . | . . . . Parts Attached 27 | 2 7 10 8 Power 3 | . 1 1 1 Engine 3 | . 1 1 1 Core . | . . . . Reactor . | . . . . Propulsion 8 | . 2 3 3 Treads . | . . . . Leg . | . . . . Wheel . | . . . . Hover 3 | . . . 3 Flight 5 | . 2 3 . Utility 8 | . 2 3 3 Device 4 | . 2 1 1 Storage . | . . . . Processor 1 | . . 1 . Hackware . | . . . . Protection 3 | . . 1 2 Artifact . | . . . . Weapon 8 | 2 2 3 1 Energy Gun 2 | 2 . . . Energy Cannon . | . . . . Ballistic Gun 3 | . 2 1 . Ballistic Cannon . | . . . . Launcher 1 | . . 1 . Special Weapon . | . . . . Impact Weapon 1 | . . 1 . Slashing Weapon 1 | . . . 1 Piercing Weapon . | . . . . Special Melee Weapon . | . . . . Unidentified Prototypes . | . . . . Parts Lost 10 | . 1 6 3 Power 2 | . . 1 1 Propulsion 5 | . 1 2 2 Utility 2 | . . 2 . Weapon 1 | . . 1 . Highest Loss Streak 3 | . 1 2 3 To Critical Strikes . | . . . . Average Slot Usage (%) 57 | . 56 54 62 Engine 1 | . 1 2 . Hover 5 | . . . 20 Flight 9 | . 10 12 3 Device 15 | . 15 16 15 Processor 4 | . . 3 9 Protection 3 | . . 3 7 Energy Gun 5 | . 21 . . Ballistic Gun 7 | . 7 11 . Impact Weapon 1 | . . 3 . Slashing Weapon 2 | . . . 8 Naked Turns . | . . . . Heaviest Build 7 | 3 7 7 6 Greatest Support 16 | 3 8 8 16 Greatest Overweight (x) 1 | . 1 . . Average Overweight (x) . | . . . . Largest Inventory Capacity 5 | 5 5 5 5 Average Capacity 5 | 5 5 5 5 Most Carried 5 | 5 5 5 5 Average Carried 4 | 5 4 4 3 Final Capacity 5 | 5 5 5 5 Final Carried 5 | 5 5 5 4 Class Distribution -------------------- 100% | Mutant Dominant Class ---------------- Mutant | -10/Materials Mutant | -9/Materials Mutant | -8/Materials Resources | -11 -10 -9 -8 ----------- Run | Scr Mat Mat Mat Matter Collected 279 | 200 . 49 30 Remotely . | . . . . Salvage Created 84 | . . 54 30 Parts 6 | . . 5 1 Haulers Intercepted . | . . . . Recyclers Shooed . | . . . . Parts Field Recycled . | . . . . Retrieved Matter . | . . . . Parts Self-Destructed . | . . . . Prevented . | . . . . Kills | -11 -10 -9 -8 ------- Run | Scr Mat Mat Mat Combat Hostiles Destroyed 4 | . . 4 . Guns 3 | . . 3 . AOE 1 | . . 1 . Classes Destroyed 2 | . . 1 1 Worker 1 | . . . 1 Swarmer 4 | . . 4 . Best Kill Streak 3 | . . 3 1 Combat Bots Only 3 | . . 3 . Max Kills in Single Turn 1 | . . 1 1 Gunslinging . | . . . . Exploded 1 | . . 1 . Melee . | . . . . Uniques/NPCs Destroyed . | . . . . Combat | -11 -10 -9 -8 -------- Run | Scr Mat Mat Mat Damage Taken 737 | . 43 452 242 Core 210 | . . 125 85 Absorbed by Shields . | . . . . Core Remaining (%) 89 | 100 100 68 . Volleys Fired 14 | . . 14 . Largest 2 | . . 2 . Hottest 40 | . . 40 . Shots Fired 27 | . . 27 . Gun 26 | . . 26 . Cannon . | . . . . Launcher 1 | . . 1 . Special . | . . . . Kinetic 26 | . . 26 . Thermal . | . . . . Explosive 1 | . . 1 . Electromagnetic . | . . . . Robot Hit Streak 6 | . . 6 . Robot Miss Streak 4 | . . 4 . Penetration Max . | . . . . Secondary Targets . | . . . . Shots Hit Robots 18 | . . 13 5 Core Hits 8 | . . 7 1 Critical Kills . | . . . . Critical Parts Destroyed . | . . . . Critical Strikes . | . . . . Melee Attacks 6 | . . . 6 Impact . | . . . . Slashing 6 | . . . 6 Piercing . | . . . . Sneak Attacks 1 | . . . 1 Combat Hostiles . | . . . . Follow-up Attacks . | . . . . Damage Inflicted 372 | . . 173 199 Guns 108 | . . 108 . Cannons . | . . . . Explosions 65 | . . 65 . Melee 199 | . . . 199 Ramming . | . . . . Kinetic 108 | . . 108 . Thermal . | . . . . Explosive 65 | . . 65 . Electromagnetic . | . . . . Impact . | . . . . Slashing 199 | . . . 199 Piercing . | . . . . Highest Corruption . | . . . . Average Corruption . | . . . . Corruption Purged . | . . . . Corruption Blocked . | . . . . Overload Shots . | . . . . Overflow Damage 39 | . . 12 27 Projectiles . | . . . . Explosions 12 | . . 12 . Melee 27 | . . . 27 Knockbacks . | . . . . Impact . | . . . . Kinetic . | . . . . Secondary . | . . . . Self-Inflicted Damage 39 | . . 39 . Shots 1 | . . 1 . Rammed . | . . . . Targets Rammed . | . . . . Kicked . | . . . . Crushed . | . . . . Highest Temperature . | . . . . Average Temperature . | . . . . Received Heat Transfer 105 | . 24 63 18 Siege Activations . | . . . . Robots Corrupted . | . . . . Combat Hostiles . | . . . . Parts Fried . | . . . . Impact Corruptions . | . . . . Robots Melted . | . . . . Combat Hostiles . | . . . . Parts Melted . | . . . . Heat Transferred . | . . . . Parts Sabotaged . | . . . . Parts Stolen . | . . . . Parts Stripped . | . . . . Power Chain Reactions . | . . . . Missiles Intercepted . | . . . . Alert | -11 -10 -9 -8 ------- Run | Scr Mat Mat Mat Peak Influence 225 | . 59 225 129 Initial 94 | . . 24 94 Average 85 | . 21 110 107 Maximum Alert Level 1 | . . 1 . Low Security (%) 98 | 100 100 96 100 Level 1 1 | . . 3 . Level 2 . | . . . . Level 3 . | . . . . Level 4 . | . . . . Level 5 . | . . . . High Security . | . . . . Max Security . | . . . . Squads Dispatched 5 | . 2 3 . Investigation 5 | . 2 3 . Extermination . | . . . . Reinforcement . | . . . . Assault . | . . . . Garrison . | . . . . Intercept . | . . . . Searches Triggered . | . . . . Construction Impeded . | . . . . Haulers Reinforced . | . . . . Active Scanning Responses . | . . . . Cargo Convoy Interrupts . | . . . . Stealth | -11 -10 -9 -8 --------- Run | Scr Mat Mat Mat Distress Signals 1 | . . . 1 Communications Jammed . | . . . . Distress Signals . | . . . . Times Spotted 28 | . 7 18 3 Peak Tracking Total 13 | . 6 13 3 Tactical Retreats 2 | . 1 1 . Traps | -11 -10 -9 -8 ------- Run | Scr Mat Mat Mat Traps Triggered 1 | . 1 . . Indirectly . | . . . . Trap Hack Attempts . | . . . . Triggered . | . . . . Disarmed . | . . . . Reprogrammed . | . . . . Reused . | . . . . Traps Extracted . | . . . . Installed . | . . . . Triggered . | . . . . Machines | -11 -10 -9 -8 ---------- Run | Scr Mat Mat Mat Machines Disabled . | . . . . Max in Single Turn . | . . . . Garrison Access 1 | . . . 1 Machines Sabotaged . | . . . . Garrisons Compromised . | . . . . Overloaded Fab Kills . | . . . . Hacking | -11 -10 -9 -8 --------- Run | Scr Mat Mat Mat Machines Accessed 6 | . 2 3 1 Terminals 5 | . 2 3 . Fabricators . | . . . . Repair Stations . | . . . . Recycling Units . | . . . . Scanalyzers . | . . . . Garrison Access 1 | . . . 1 Total Hacks 22 | . 11 10 1 Successful 10 | . 6 3 1 Failed 12 | . 5 7 . Catastrophic 1 | . 1 . . Database Lockouts . | . . . . Manual 12 | . 7 5 . Terminals 21 | . 11 10 . Fabricators . | . . . . Repair Stations . | . . . . Recycling Units . | . . . . Scanalyzers . | . . . . Garrison Access 1 | . . . 1 Terminal Hacks 5 | . 3 2 . Level Access Points 1 | . . 1 . Branch Access Points 1 | . 1 . . Terminal Index 2 | . 1 1 . Zone Layout 1 | . 1 . . Fabricator Hacks . | . . . . Repair Station Hacks . | . . . . Recycling Unit Hacks . | . . . . Scanalyzer . | . . . . Garrison Access Hacks 1 | . . . 1 Seal Access 1 | . . . 1 Unauthorized Hacks 4 | . 3 1 . Terminals 4 | . 3 1 . Track 1 | . 1 . . Botnet 3 | . 2 1 . Fabricators . | . . . . Repair Stations . | . . . . Recycling Units . | . . . . Scanalyzers . | . . . . Garrison Access . | . . . . Data Cores Recovered . | . . . . Used . | . . . . Hacking Detections 5 | . 2 3 . Full Trace Events 4 | . 1 3 . Feedback Events . | . . . . Feedback Blocked . | . . . . Robot Schematics Acquired . | . . . . Robots Built . | . . . . Authchips . | . . . . Time . | . . . . Total Robot Build Rating . | . . . . Part Schematics Acquired . | . . . . Parts Built . | . . . . Authchips . | . . . . Time . | . . . . Total Part Build Rating . | . . . . Parts Repaired . | . . . . Time . | . . . . Parts Recycled . | . . . . Recycled Matter . | . . . . Retrieved Matter . | . . . . Retrieved Components . | . . . . Parts Scanalyzed . | . . . . Part Schematics Acquired . | . . . . Parts Damaged . | . . . . Bothacking | -11 -10 -9 -8 ------------ Run | Scr Mat Mat Mat Used RIF Installer . | . . . . Robots Hacked . | . . . . Non-combat . | . . . . Combat . | . . . . Robot Hacks Applied . | . . . . Relay Couplers Released . | . . . . Fabnet Peak Effective % . | . . . . Robots Rewired . | . . . . Allies Hacked . | . . . . Hacks Repelled . | . . . . Allies | -11 -10 -9 -8 -------- Run | Scr Mat Mat Mat Total Allies . | . . . . Largest Group . | . . . . Highest-Rated Group . | . . . . Highest-Rated Ally . | . . . . Total Orders . | . . . . Ally Attacks . | . . . . Total Damage . | . . . . Kills . | . . . . Allies Corrupted . | . . . . Allies Melted . | . . . . Intel | -11 -10 -9 -8 ------- Run | Scr Mat Mat Mat Robot Analysis Total . | . . . . Derelict Logs Recovered . | . . . . Drone Launches . | . . . . Drone Recoveries . | . . . . Exploration | -11 -10 -9 -8 ------------- Run | Scr Mat Mat Mat Turns Passed 318 | 5 80 141 92 Spaces Moved 451 | 4 119 214 114 Core 49 | 4 43 2 . Treads . | . . . . Legs . | . . . . Wheels . | . . . . Hover 78 | . . . 78 Flight 324 | . 76 212 36 Fastest Speed 37 | 50 37 37 40 Average Speed 45 | 50 53 38 51 Slowest Speed 100 | 50 100 50 60 Overloaded Moves . | . . . . Propulsion Burnouts . | . . . . Robots Hopped 10 | . 1 9 . Cave-ins Triggered . | . . . . Exploration Rate (%) 20 | 2 33 29 16 Regions Visited 3 Branch Regions . Pre-discovered Areas . | . . . . Known Exits Taken 1 | . . 1 . Unknown Exits Taken 2 | 1 1 . . Scrap Searched . | . . . . Spaces Dug . | . . . . Terrain Destroyed 7 | . . 7 . Melee . | . . . . Projectile . | . . . . AOE 7 | . . 7 . Terrain Rammed . | . . . . Walls Destroyed . | . . . . Machines Disabled . | . . . . Actions | -11 -10 -9 -8 --------- Run | Scr Mat Mat Mat Total 516 | 5 133 240 138 Wait 9 | . . 5 4 Move 428 | 3 116 195 114 Hop 10 | . 1 9 . Pick Up 7 | . 3 2 2 Fast Attach 18 | 2 6 5 5 Attach 7 | . 1 3 3 Detach 4 | . 1 2 1 Swap 2 | . . 2 . Drop 11 | . 5 3 3 Fire 14 | . . 14 . Melee 6 | . . . 6 Ram . | . . . . Kick . | . . . . Crush . | . . . . Escape Stasis . | . . . . Rewire . | . . . . Trap . | . . . . Miscellaneous . | . . . . Route ------- -11/Scrapyard -10/Materials (discovered 2 exits: *Mat / *Min) -9/Materials (discovered 4 exits: *Mat x3 / [*Min]) -8/Materials History --------- Turn | Location | Event 1 | -11/Scrapyard | Released all parts (6) 1 | -11/Scrapyard | Discovered new exit (range 3) 6 | -11/Scrapyard | Entered Materials 51 | -10/Materials | Identified exit to Mines 80 | -10/Materials | Discovered new exit (range 16) 86 | -10/Materials | Entered another Materials area 86 | -9/Materials | Evolved 2 slots: Utility x2 207 | -9/Materials | Identified exit to Materials 212 | -9/Materials | Discovered new exit (range 17) 227 | -9/Materials | Entered another Materials area 227 | -8/Materials | Evolved 2 slots: Propulsion x1, Utility x1 313 | -8/Materials | Build established: Mutant 319 | -8/Materials | Self-destructed Last Messages --------------- Access door sealed. 00229_ Dropped Hvy. Mace. 00235_ Acquired Scythe. 00239_ Acquired Imp. Utility Shielding. 00240_ Dropped Lgt. Assault Rifle. 00246_ Acquired Airjet. 00251_ Dropped Flight Unit. 00251_ Acquired Airjet. 00259_ W-25 Informer sends out distress signal. 00265_ Destroyed Imp. Hover Unit. 00288_ Sneak attack on T-07 Excavator. 00288_ Destroyed Wheel. 00288_ K-01 Serf collects debris. 00291_ K-01 Serf destroyed. 00292_ Acquired 30 matter. 00296_ Acquired Propulsion Shielding. 00311_ Acquired Lgt. Deuterium Engine. 00319_ Nuclear Reactor explodes. 00319_ Lgt. Deuterium Engine destroyed. 00319_ Airjet destroyed. Map ----- +----------------------------------------------------+ | ?????????# ############# ## | | ?????????# + = ## | | ??????#####+############## = ## | | ??????# #??????? # = ## | | ??????# #??????? # ## | | ??????# #??????? # ## | | ??????# #??????? # ## | | ??????# """ """ #??????? # ## | | ??????# """ """ #??????? ########### | | ??????# """ """ ########+########### | | ??????# / | | ########/##################????????? | | # # +?? #??????????????? | | #""" # # #??????????????? | | #""" + += #??????????????? | | #""" # # #??????????????? | | #""" # # #??????????????? | | #""" # #? #??????????????? | | # # #? #??????????????? | | #""" # #?? #??????????????? | | #""" / # #???#######??????????????? | | #""" # Y#?######?????????????????? | | #""" # ## # ###???????????????? | | #""" =# #???????????????? | | # # * ##??????????????? | | ######## @ #??????????????? | | ???????# #??????????????? | | ???????## #??????????????? | | ???????# Y #??????????????? | | ???????## #??????????????? | | ????????# ##??????????????? | | ???????? #???????????????? | | ???????## #???????????????? | | ????????# ##???????????????? | | ????????### ## ###????????????????? | | ???????????#??###??????????????????? | | ???????????????????????????????????? | | | | | | | | | | | | | | | | | | | | | | | | | | | +----------------------------------------------------+ Best States ------------- Heat Dissipation 31 Energy Generation 10 Energy Capacity 125 Matter Stores 280 Matter Capacity 300 Sight Range 20 Terrain Scan Density 10 Armor Coverage 150 Utility Shielding 66 Evasion (%) 62 Item Schematics ----------------- None Robot Schematics ------------------ None Fabricated ------------ Nothing Alien Tech Used ----------------- None Achievements -------------- None Challenges ------------ None Game ------ Seed PulseFlightTendrils Manual? 0 Play Time 00:12:41 Cumulative 159.1 hours Start 2022.05.02 @ 14:14:46 End 2022.05.02 @ 14:25:03 Sessions 1 Manual Loads 0 Difficulty Rogue Special Mode None Game No. 256 Rogue 255 Adventurer 0 Explorer 1 Win Type - Total 7 Types 7/0/0/0/0/0/0/0/0 Lore% 60 Gallery% 63 Achievement% 53 Wizard Run 0 Options --------- ASCII 1 Keyboard 0 Movement Vi Keybinds 0 Fullscreen 1 Font 18/SmallcapsGlow Map View 76x50 Tactical HUD 1 Map Filters NONE Filters NONE Steam 1 RUN: 7c5d4d92-10d2-4809-b5b2-f8c4679234e2